bitfinex-derivatives/quotes_ETHF0:USTF0_20250917
["timestamp","ask_amount","ask_price","bid_price","bid_amount"]
[1758069248744,1.36978468,4519.0,4518.9,0.4072]
[1758069248933,1.36978468,4519.0,4518.9,0.7101]
[1758069249134,1.24618468,4519.0,4518.9,0.7101]
[1758069250743,1.36978468,4519.0,4518.9,0.7101]
[1758069250937,1.36978468,4519.0,4518.9,0.4072]
[1758069251140,1.04778468,4519.0,4518.9,0.7101]
[1758069251741,0.65938468,4519.0,4518.0,0.1206]
[1758069252037,1.24618468,4518.9,4518.8,0.7101]
[1758069253039,0.3052,4519.2,4518.8,0.7101]
[1758069253237,0.3052,4519.1,4518.9,0.3029]
[1758069253439,0.512,4519.1,4519.0,0.7101]
[1758069253842,0.2068,4518.7,4518.6,0.7101]
[1758069254145,0.7104,4518.7,4518.6,0.7101]
[1758069254540,0.7104,4518.7,4518.6,0.4072]
[1758069254741,0.1236,4519.0,4518.2,0.3029]
[1758069254742,0.4052,4518.3,4518.2,0.2131]
[1758069254947,0.1236,4518.5,4517.1,0.2131]
[1758069254948,0.7104,4517.2,4517.1,0.2131]
[1758069255149,0.3052,4516.9,4516.1,0.3029]
[1758069255336,0.512,4516.2,4516.1,0.7101]
[1758069255537,0.7104,4516.2,4516.1,0.7101]
[1758069255743,0.512,4516.2,4516.1,1.65145984]
[1758069256138,0.1236,4516.5,4516.1,1.65145984]
[1758069256344,0.1236,4516.5,4516.3,0.2131]
[1758069256345,0.3052,4516.4,4516.3,0.2131]
[1758069256547,0.512,4516.4,4516.3,0.7101]
[1758069257542,0.512,4516.4,4516.3,1.65145984]
[1758069257740,0.7104,4516.4,4515.8,0.3029]
[1758069258248,0.1236,4516.5,4515.9,0.2131]
[1758069258249,0.1236,4516.0,4515.9,0.2131]
[1758069258646,0.5288,4516.0,4515.9,0.2131]
[1758069258847,0.834,4516.0,4515.4,0.3029]
[1758069259242,0.834,4516.0,4515.9,0.2131]
[1758069259448,0.7104,4516.0,4515.9,0.7101]
[1758069259643,0.7104,4516.0,4515.5,0.1204]
[1758069259644,0.834,4516.5,4516.4,0.4072]
[1758069259951,0.512,4516.5,4516.4,0.7101]
[1758069260543,0.3052,4516.4,4515.7,0.3029]
[1758069260747,0.7104,4515.8,4515.7,0.4072]
[1758069261857,0.7104,4515.8,4515.7,0.7101]
[1758069262552,0.7104,4515.8,4515.7,0.4072]
[1758069263759,0.7104,4515.8,4515.1,0.0221]
[1758069263760,0.4052,4515.8,4515.1,0.0221]
[1758069263958,0.7104,4515.2,4514.0,0.3029]
[1758069264464,0.8534,4515.2,4514.0,0.3029]
[1758069265358,0.7104,4514.9,4514.8,0.2131]
[1758069266062,0.7104,4514.9,4514.1,0.3029]
[1758069267362,0.7104,4514.9,4514.8,0.2131]
[1758069267666,0.3052,4515.4,4514.9,0.3029]
[1758069267965,0.3052,4515.4,4515.3,0.7101]
[1758069267966,0.7104,4515.4,4515.3,0.7101]
[1758069270368,0.512,4515.4,4515.3,0.7101]
[1758069270863,0.1211,4515.0,4514.9,2.7459245]
[1758069271061,0.8149,4515.0,4514.9,0.2098]
[1758069271566,0.8149,4515.0,4514.9,0.4096]
[1758069271961,0.2066,4515.0,4514.9,0.7312]
[1758069272366,0.292,4515.3,4514.9,3.4771245]
[1758069272666,0.5229,4515.5,4515.4,0.2098]
[1758069272866,0.8149,4515.5,4515.4,0.2098]
[1758069274168,0.8149,4515.5,4515.0,0.3216]
[1758069274372,0.8149,4515.0,4514.6,0.3216]
[1758069274565,0.8149,4515.0,4514.4,2.7459245]
[1758069274566,0.292,4514.9,4514.4,2.7459245]
[1758069274769,0.6938,4514.5,4514.4,3.1555245]
[1758069274977,0.1211,4515.0,4514.4,3.1555245]
[1758069275171,0.6938,4514.9,4514.8,0.2098]
[1758069276673,0.6938,4514.9,4514.8,0.4096]
[1758069278373,0.4018,4514.9,4514.4,3.0675245]
[1758069278571,0.292,4514.8,4514.4,3.0675245]
[1758069278873,0.6938,4514.8,4514.7,0.2098]
[1758069279062,0.6938,4514.8,4514.7,0.4096]
[1758069279266,0.6938,4514.8,4514.7,0.7312]
[1758069279466,0.292,4515.4,4514.8,0.3216]
[1758069279771,0.6938,4515.4,4515.3,0.2098]
[1758069280472,0.6938,4515.4,4514.8,0.3216]
[1758069280671,0.2066,4514.5,4514.4,0.7312]
[1758069280870,0.8149,4514.5,4514.4,0.2098]
[1758069281476,0.8149,4514.5,4514.4,0.7312]
[1758069281666,0.292,4515.4,4514.5,0.1274]
[1758069281867,0.6938,4515.4,4515.3,0.2098]
[1758069282267,0.6938,4515.4,4514.8,2.7459245]
[1758069282475,0.8149,4515.0,4514.9,0.2098]
[1758069282869,0.292,4514.9,4514.1,0.3437]
[1758069283075,0.6938,4514.2,4514.1,0.7533]
[1758069283574,0.292,4514.4,4514.2,0.3216]
[1758069283979,0.4986,4514.3,4514.2,0.7312]
[1758069286777,0.6938,4514.3,4514.2,0.7312]
[1758069286984,0.6938,4514.3,4514.2,0.2098]
[1758069288168,0.6938,4514.3,4514.2,0.7312]
[1758069288881,0.6938,4514.3,4514.2,0.4096]
[1758069289279,0.6938,4514.3,4514.2,0.7312]
[1758069290185,0.6938,4514.3,4514.2,3.4771245]
[1758069290384,0.4986,4514.9,4514.8,0.7312]
[1758069290578,0.6938,4514.9,4514.8,0.7312]
[1758069291184,1.23261221,4514.9,4514.5,0.3216]
[1758069291380,0.292,4514.8,4514.2,2.7459245]
[1758069291684,0.6938,4514.8,4514.7,0.2098]
[1758069293284,0.94109456,4514.8,4514.2,2.7459245]
[1758069293484,0.4986,4514.3,4514.2,3.4771245]
[1758069293685,0.6938,4514.3,4514.2,3.4771245]
[1758069296387,0.4986,4514.3,4514.2,3.4771245]
[1758069298086,0.6958,4514.3,4514.2,3.4771245]
[1758069299496,0.1211,4515.0,4514.3,0.3061]
[1758069299786,0.7157,4514.4,4514.3,0.7229]
[1758069300779,0.7157,4514.4,4514.3,0.4168]
[1758069301575,0.7157,4514.4,4513.8,2.277]
[1758069301576,0.7157,4513.7,4513.6,0.229]
[1758069301790,0.7157,4513.7,4513.6,0.0221]
[1758069301991,0.7157,4513.3,4512.9,0.78553596]
[1758069302298,0.8341,4513.0,4512.9,0.99243596]
[1758069303094,0.8341,4513.0,4512.9,1.50843596]
[1758069303794,0.8341,4513.0,4512.9,0.7229]
[1758069306099,0.8341,4513.0,4512.9,0.4168]
[1758069306788,0.5151,4513.0,4512.9,0.7229]
[1758069306994,0.7157,4513.4,4513.3,0.4168]
[1758069307191,0.7157,4513.4,4513.3,0.7229]
[1758069307792,0.3049,4513.9,4513.4,0.3061]
[1758069307992,0.7157,4513.9,4513.8,0.2069]
[1758069309090,0.7157,4513.9,4513.4,0.3061]
[1758069309292,0.4108,4513.9,4513.2,0.3061]
[1758069309493,0.7157,4513.8,4513.7,0.2069]
[1758069310799,0.7157,4513.8,4513.7,0.7229]
[1758069311492,0.7157,4513.8,4513.1,2.7492872]
[1758069311692,0.7157,4513.7,4513.6,0.2069]
[1758069312199,0.7157,4513.7,4513.6,0.7229]
[1758069314001,0.7157,4513.7,4513.1,2.7492872]
[1758069314002,0.2102,4512.6,4512.5,0.7229]
[1758069314193,0.5151,4512.6,4512.5,0.7229]
[1758069315993,0.7157,4512.6,4512.5,0.7229]
[1758069320002,0.3049,4513.8,4512.2,0.3061]
[1758069320201,0.5299,4513.7,4512.3,0.3061]
[1758069320400,0.75148001,4513.7,4512.3,0.3061]
[1758069320700,0.22158001,4513.6,4512.3,0.3061]
[1758069320899,0.4233,4513.5,4512.3,0.3061]
[1758069321099,0.3049,4513.3,4512.3,0.3061]
[1758069321695,0.2102,4512.4,4512.3,0.7229]
[1758069321895,0.2102,4512.4,4512.3,0.4168]
[1758069321896,0.7157,4512.4,4512.3,0.4168]
[1758069322203,0.7157,4512.4,4512.0,0.0221]
[1758069323095,0.7157,4512.4,4512.0,0.3282]
[1758069323492,0.2102,4512.1,4512.0,0.0221]
[1758069323698,0.7157,4512.1,4512.0,0.229]
[1758069323902,0.7157,4512.1,4512.0,0.2069]
[1758069324198,0.7157,4512.1,4512.0,0.4168]
[1758069324395,0.7157,4512.1,4512.0,0.2069]
[1758069324896,0.7157,4511.8,4511.7,0.2069]
[1758069325101,0.7157,4511.8,4511.3,0.3061]
[1758069325102,0.1184,4511.5,4511.4,0.2069]
[1758069325394,0.3286,4511.5,4511.4,0.7229]
[1758069325601,0.6335,4511.5,4511.4,0.7229]
[1758069326199,0.5151,4511.5,4511.4,0.7229]
[1758069326396,0.3049,4511.9,4511.4,0.7229]
[1758069326599,0.1184,4512.5,4511.4,0.7229]
[1758069326600,0.1184,4512.5,4512.0,0.4323]
[1758069326795,0.1184,4512.5,4512.4,0.4168]
[1758069326796,0.8341,4512.5,4512.4,0.4168]
[1758069326996,0.8341,4512.5,4511.6,0.3061]
[1758069327508,0.4108,4511.7,4511.6,0.513]
[1758069327704,0.7157,4511.7,4511.6,0.7229]
[1758069328297,0.1184,4512.0,4511.6,0.7229]
[1758069328505,0.3091,4511.9,4511.6,0.4168]
[1758069328701,0.3091,4511.9,4511.8,0.4082]
[1758069328898,0.3091,4511.9,4511.8,0.7269]
[1758069329303,0.5206,4511.9,4511.8,0.7269]
[1758069329809,0.7278,4511.9,4511.8,0.7269]
[1758069330010,0.7278,4511.9,4511.8,0.4082]
[1758069330410,0.4187,4511.9,4511.8,0.1945]
[1758069330606,0.7278,4511.9,4511.8,0.1945]
[1758069331212,0.7278,4511.9,4511.5,0.3187]
[1758069332807,0.4187,4511.9,4511.2,0.5437]
[1758069333008,0.5206,4511.3,4511.2,0.9519]
[1758069333211,0.5206,4511.3,4511.2,0.7269]
[1758069333812,0.7278,4511.3,4511.2,0.7269]
[1758069339011,0.7278,4511.3,4511.2,0.9519]
[1758069339512,0.5206,4511.9,4511.8,0.1945]
[1758069339716,0.7278,4511.9,4511.8,0.1945]
[1758069340509,0.5206,4511.9,4511.8,0.7269]
[1758069342818,0.7278,4511.9,4511.8,0.7269]
[1758069343018,0.7278,4511.9,4511.6,3.14393573]
[1758069343219,0.4187,4511.7,4511.6,3.33843573]
[1758069343423,0.7278,4511.7,4511.6,3.33843573]
[1758069343627,0.7278,4511.7,4511.6,3.87083573]
[1758069345721,0.3091,4512.4,4511.7,0.3187]
[1758069345921,0.3091,4512.9,4512.4,0.3187]
[1758069346127,0.7278,4512.9,4512.8,0.4082]
[1758069346624,0.7278,4512.9,4512.2,0.5437]
[1758069346817,0.2115,4512.3,4512.2,0.9519]
[1758069347016,0.5206,4512.3,4512.2,0.9519]
[1758069347518,0.7278,4512.3,4512.2,0.9519]
[1758069347922,0.5206,4512.3,4512.2,0.9519]
[1758069348922,0.2115,4512.3,4512.2,0.9519]
[1758069349125,0.3091,4512.6,4512.5,0.4082]
[1758069349327,0.5206,4512.9,4512.8,0.7269]
[1758069349529,0.7278,4512.9,4512.8,0.7269]
[1758069349826,0.7278,4512.9,4512.8,1.13718689]
[1758069350332,0.7278,4512.9,4512.8,0.94268689]
[1758069351428,0.7278,4512.9,4512.8,1.13718689]
[1758069352732,0.7278,4512.9,4512.8,1.66958689]
[1758069352937,0.7278,4513.4,4513.3,0.1945]
[1758069353232,0.7278,4513.4,4513.3,1.13718689]
[1758069354937,0.7278,4513.4,4513.3,1.66628689]
[1758069355228,0.5206,4513.4,4513.3,1.66628689]
[1758069356329,0.5028,4513.9,4513.8,0.4062]
[1758069356632,0.5028,4513.9,4513.8,1.66958689]
[1758069356838,0.7087,4514.4,4514.3,0.7269]
[1758069357337,0.5028,4513.9,4513.8,0.7269]
[1758069357525,0.5028,4513.9,4513.8,1.66958689]
[1758069358832,0.1228,4514.5,4513.8,0.94268689]
[1758069359031,0.5307,4514.5,4513.9,0.3037]
[1758069359431,0.2034,4514.0,4513.9,0.2058]
[1758069359637,0.5204,4514.0,4513.9,0.7095]
[1758069360536,0.7249,4514.0,4513.9,0.7095]
[1758069360940,0.8484,4514.0,4513.9,0.7095]
[1758069361132,0.5204,4514.0,4513.9,0.7095]
[1758069361332,0.1228,4514.5,4514.0,0.3037]
[1758069361642,0.7249,4514.4,4514.3,0.7095]
[1758069362132,0.225,4514.8,4514.3,0.7095]
[1758069362341,0.2034,4514.6,4514.5,1.34848689]
[1758069362736,0.2034,4514.6,4514.5,1.65218689]
[1758069362937,0.5204,4514.6,4514.5,1.65218689]
[1758069363740,0.7249,4514.6,4514.5,1.65218689]
[1758069364538,0.317,4514.4,4513.6,0.3037]
[1758069364739,0.5204,4514.0,4513.9,1.65218689]
[1758069364934,0.1235,4514.5,4514.0,0.3037]
[1758069364935,0.317,4514.4,4514.0,0.3037]
[1758069365131,0.8484,4514.5,4514.4,0.2058]
[1758069365331,0.4079,4514.3,4514.2,0.94268689]
[1758069365541,0.7249,4514.3,4514.2,0.94268689]
[1758069366841,0.7249,4514.3,4514.2,1.14848689]
[1758069368745,0.7249,4514.3,4514.2,1.65218689]
[1758069368945,0.225,4515.1,4514.3,0.3037]
[1758069369142,0.2034,4514.4,4514.3,0.7095]
[1758069369338,0.2215,4514.9,4514.3,0.4058]
[1758069369546,0.5204,4514.8,4514.7,1.34848689]
[1758069369743,0.7249,4514.8,4514.7,1.65218689]
[1758069374745,0.7249,4514.8,4514.7,0.94268689]
[1758069375046,0.5314,4514.5,4514.4,0.5095]
[1758069375347,0.8484,4514.5,4514.4,0.5095]
[1758069375546,0.8484,4514.5,4514.4,0.7095]
[1758069375847,0.7249,4514.5,4514.4,0.7095]
[1758069376940,0.5204,4514.5,4514.4,0.7095]
[1758069377948,0.2034,4514.5,4514.4,0.7095]
[1758069378245,0.7249,4515.4,4515.3,0.5095]
[1758069378547,0.7249,4515.4,4514.5,0.1256]
[1758069378548,0.4079,4515.4,4515.1,0.94268689]
[1758069378845,0.1192,4515.5,4514.8,0.3037]
[1758069378846,0.7249,4515.2,4514.8,0.3037]
[1758069379048,0.8484,4515.0,4514.9,1.14848689]
[1758069381248,0.8484,4515.0,4514.9,1.45218689]
[1758069381544,0.7249,4515.0,4514.9,1.65218689]
[1758069381751,0.2034,4515.5,4515.4,0.7095]
[1758069381946,0.4079,4516.0,4515.9,0.7095]
[1758069382146,0.1235,4516.5,4516.4,0.4058]
[1758069382147,0.5314,4516.5,4516.4,0.4058]
[1758069382447,0.7249,4516.5,4516.4,0.7095]
[1758069382655,0.1235,4517.0,4516.4,1.34848689]
[1758069382849,0.8484,4517.0,4516.9,0.7095]
[1758069383045,0.8484,4517.0,4516.9,1.65218689]
[1758069383249,0.7249,4517.0,4516.9,1.65218689]
[1758069384652,0.5204,4517.4,4517.1,0.3037]
[1758069384951,0.317,4517.7,4517.4,0.3037]
[1758069385152,0.5204,4517.7,4517.6,0.7095]
[1758069385647,0.7249,4517.7,4517.6,0.7095]
[1758069387858,0.7249,4517.7,4517.6,1.49347987]
[1758069388560,0.7249,4517.7,4517.6,1.18977987]
[1758069389252,0.7249,4517.7,4517.6,1.50287987]
[1758069392447,0.2034,4517.7,4517.6,1.50287987]
[1758069392850,0.5061,4517.7,4517.6,1.50287987]
[1758069393851,0.3027,4518.4,4518.0,0.4365]
[1758069394056,0.5159,4518.4,4518.3,1.50997987]
[1758069394556,0.1235,4519.0,4518.3,1.50997987]
[1758069394757,1.26283781,4518.9,4518.8,0.98967987]
[1758069396456,0.96013781,4518.9,4518.5,0.78397987]
[1758069396763,0.7283,4518.6,4518.5,0.98967987]
[1758069397258,0.7283,4518.6,4518.5,1.50997987]
[1758069399865,0.7283,4518.6,4518.5,0.78397987]
[1758069400868,0.7283,4518.6,4518.5,0.98967987]
[1758069401365,0.7283,4518.6,4518.5,1.50997987]
[1758069402565,0.7283,4518.6,4518.5,1.19687987]
[1758069402861,0.7283,4518.6,4518.5,1.50997987]
[1758069404555,0.7283,4518.6,4518.5,0.2057]
[1758069405157,0.4256,4518.3,4518.2,0.98967987]
[1758069405367,0.1173,4518.0,4517.9,0.98967987]
[1758069405660,0.8456,4518.0,4517.9,0.98967987]
[1758069405858,0.8456,4518.0,4517.9,1.50997987]
[1758069407355,0.7283,4518.0,4517.9,1.50997987]
[1758069409370,0.8456,4518.0,4517.9,1.50997987]
[1758069409961,0.8456,4518.0,4517.4,0.3352]
[1758069410162,0.8456,4517.5,4517.4,0.2278]
[1758069410469,0.8456,4517.5,4517.4,0.2057]
[1758069410966,0.7283,4517.1,4516.7,0.3131]
[1758069411267,0.7283,4516.6,4516.5,0.98967987]
[1758069411759,1.26550139,4516.6,4516.5,0.98967987]
[1758069412156,1.26550139,4516.6,4516.2,0.78397987]
[1758069412362,0.7283,4516.3,4516.2,0.98967987]
[1758069412868,0.7283,4516.3,4516.2,1.50997987]
[1758069413069,0.5159,4516.3,4516.2,1.50997987]
[1758069415067,0.7283,4516.3,4516.2,1.50997987]
[1758069415369,0.7283,4516.3,4516.2,1.19687987]
[1758069416070,0.7283,4516.3,4516.2,0.2057]
[1758069416264,0.7283,4516.3,4516.2,0.98967987]
[1758069417574,0.7283,4516.3,4516.2,1.49817987]
[1758069418065,0.1173,4517.0,4516.2,1.49817987]
[1758069418271,1.05727571,4516.9,4516.8,0.7217]
[1758069418472,1.05727571,4516.9,4516.8,1.50567987]
[1758069418668,0.53687571,4516.9,4516.8,1.50567987]
[1758069418872,0.3413,4517.5,4517.1,0.7217]
[1758069419175,0.5204,4517.3,4517.2,0.7217]
[1758069419373,1.25953263,4517.3,4517.2,0.7217]
[1758069420070,1.25953263,4517.3,4517.2,1.50567987]
[1758069421475,0.7227,4517.3,4517.2,1.50567987]
[1758069422672,0.7227,4517.3,4517.2,0.99047987]
[1758069423372,0.7227,4517.3,4517.2,1.50567987]
[1758069423574,0.7227,4517.3,4516.9,0.78397987]
[1758069423770,0.5326,4517.0,4516.9,0.99047987]
[1758069423967,0.3413,4517.5,4516.9,1.50567987]
[1758069424175,0.7227,4517.5,4517.4,1.50567987]
[1758069425875,0.8444,4517.5,4517.4,1.50567987]
[1758069426778,1.0684,4517.5,4517.4,1.50567987]
[1758069426979,0.8444,4517.5,4517.4,1.50567987]
[1758069427168,1.0684,4517.5,4517.4,1.50567987]
[1758069428075,0.9467,4517.5,4517.4,1.50567987]
[1758069428278,0.7444,4517.5,4517.4,1.50567987]
[1758069429379,0.5204,4517.5,4517.4,1.50567987]
[1758069429576,0.84,4518.0,4517.9,0.7217]
[1758069429877,1.064,4518.0,4517.9,1.50567987]
[1758069430976,0.7227,4518.0,4517.9,1.50567987]
[1758069431280,0.8444,4518.5,4518.4,0.2065]
[1758069431480,1.60548224,4518.5,4518.4,0.2065]
[1758069432082,1.60548224,4518.5,4518.0,0.3175]
[1758069432277,0.5204,4518.1,4518.0,0.7217]
[1758069433680,0.7227,4518.1,4518.0,0.7217]
[1758069435585,0.8444,4518.0,4517.9,0.78397987]
[1758069435985,0.8444,4518.0,4517.9,0.99047987]
[1758069436289,0.7227,4518.0,4517.9,1.50567987]
[1758069437485,0.5204,4518.0,4517.9,1.50567987]
[1758069438988,0.8444,4518.0,4517.6,0.78397987]
[1758069439282,0.7227,4517.7,4517.6,1.50567987]
[1758069439488,0.7227,4517.7,4517.6,0.4042]
[1758069439880,0.1217,4518.0,4517.7,0.3175]
[1758069440180,0.1217,4518.0,4517.2,0.80607987]
[1758069440181,0.7227,4517.9,4517.8,0.7217]
[1758069441282,0.7227,4517.9,4517.8,0.2065]
[1758069445985,0.9467,4517.9,4517.8,1.50567987]
[1758069446285,0.224,4517.9,4517.8,1.50567987]
[1758069446684,0.224,4518.1,4517.9,0.3175]
[1758069446882,0.3118,4518.3,4518.2,0.7217]
[1758069447081,1.28253172,4518.3,4518.2,0.7217]
[1758069447281,1.48483172,4518.3,4518.2,0.7217]
[1758069447487,0.53813172,4518.3,4518.2,0.7217]
[1758069447690,0.76213172,4518.3,4518.2,0.7217]
[1758069447990,1.48483172,4518.3,4518.2,0.7217]
[1758069449385,1.48483172,4518.3,4518.2,0.2065]
[1758069449587,0.1276,4518.0,4517.8,0.3068]
[1758069449783,0.7184,4517.9,4517.8,0.5022]
[1758069449984,0.7184,4517.9,4517.8,0.7118]
[1758069453491,0.5058,4517.9,4517.8,0.7118]
[1758069455894,0.7184,4517.9,4517.8,0.7118]
[1758069458094,0.7184,4517.9,4517.6,0.0221]
[1758069458798,0.7184,4516.8,4516.7,1.13597293]
[1758069458996,0.7184,4516.8,4516.7,0.1954]
[1758069460995,0.7184,4516.8,4516.7,0.5022]
[1758069461695,0.5058,4516.8,4516.7,0.7118]
[1758069463701,0.7184,4516.8,4516.7,0.7118]
[1758069463901,0.7184,4516.8,4516.7,0.405]
[1758069464099,0.7184,4516.8,4516.7,0.7118]
[1758069467598,0.7184,4516.8,4516.7,0.405]
[1758069468400,0.4107,4516.8,4516.6,0.94057293]
[1758069468701,0.7184,4516.7,4516.6,0.94057293]
[1758069469099,0.7184,4516.7,4516.6,1.13597293]
[1758069470200,0.7184,4516.0,4515.9,0.5243]
[1758069470401,0.846,4516.0,4515.9,0.0221]
[1758069470600,0.1981,4514.8,4514.7,1.65237293]
[1758069470796,0.1981,4514.8,4513.6,33.86859892]
[1758069470797,0.7184,4514.8,4513.6,33.86859892]
[1758069471100,0.53848527,4514.7,4513.8,0.3068]
[1758069471403,0.5383,4513.5,4513.4,0.1954]
[1758069471602,0.846,4513.5,4513.4,0.1954]
[1758069471802,0.846,4513.5,4513.4,0.7118]
[1758069475215,0.846,4513.5,4513.4,0.1954]
[1758069475409,0.3937,4513.2,4513.1,0.7062]
[1758069475615,0.6861,4513.2,4512.7,0.3187]
[1758069475811,0.6861,4512.8,4512.7,0.235]
[1758069476520,0.6861,4512.8,4512.7,0.2129]
[1758069477112,0.6861,4512.8,4512.7,0.7062]
[1758069477318,0.4871,4512.8,4512.7,0.7062]
[1758069477917,0.6861,4512.8,4512.7,0.7062]
[1758069480521,0.1276,4513.5,4513.0,0.1286]
[1758069480726,0.5332,4513.5,4513.4,1.66017293]
[1758069481017,0.5332,4514.0,4513.9,0.411]
[1758069481314,0.8444,4514.0,4513.9,0.2041]
[1758069481723,0.5332,4514.0,4513.8,0.94057293]
[1758069481923,0.7168,4513.9,4513.8,0.94057293]
[1758069482123,0.4056,4513.1,4513.0,1.66017293]
[1758069482424,0.7168,4513.1,4513.0,1.66017293]
[1758069482924,0.3112,4513.4,4513.0,1.48017293]
[1758069483119,0.3112,4513.9,4513.3,1.35157293]
[1758069483319,0.9408,4513.9,4513.8,1.14467293]
[1758069483518,0.9408,4513.9,4513.8,0.94057293]
[1758069483714,0.9408,4513.9,4513.0,0.1286]
[1758069483715,0.1187,4513.5,4513.4,0.2041]
[1758069483918,0.4056,4513.3,4512.8,1.24917293]
[1758069484322,0.1952,4513.2,4512.5,0.1286]
[1758069484524,0.5064,4513.1,4513.0,0.7196]
[1758069485526,0.5064,4513.1,4513.0,1.66017293]
[1758069485723,0.7168,4513.1,4513.0,1.35157293]
[1758069486226,0.7168,4513.1,4513.0,1.66017293]
[1758069488124,0.7168,4513.1,4513.0,0.7196]
[1758069488330,0.1187,4513.5,4512.5,0.1286]
[1758069488331,0.4056,4512.8,4512.7,1.14467293]
[1758069488523,0.7168,4512.8,4512.7,1.14467293]
[1758069488720,0.7168,4512.8,4512.0,0.1412]
[1758069488721,0.1187,4512.5,4512.0,0.0221]
[1758069488932,0.7168,4512.1,4512.0,0.0221]
[1758069489328,0.4056,4511.7,4511.6,1.66017293]
[1758069489627,0.5243,4512.5,4512.4,0.2041]
[1758069489826,0.5243,4512.5,4512.4,1.14467293]
[1758069490028,0.5243,4512.5,4512.4,1.66017293]
[1758069490428,0.8355,4512.5,4512.4,1.66017293]
[1758069490825,0.8355,4512.5,4512.4,0.94057293]
[1758069491027,0.8355,4512.5,4511.6,0.3086]
[1758069491227,0.7168,4512.4,4512.3,0.2041]
[1758069492628,0.7168,4512.4,4512.3,0.7196]
[1758069492833,0.1952,4512.4,4512.3,0.7196]
[1758069493132,0.3112,4512.3,4512.2,0.94057293]
[1758069493334,0.7168,4512.3,4512.2,1.14467293]
[1758069494223,0.4056,4512.3,4511.9,1.24917293]
[1758069494428,0.5243,4512.0,4511.9,1.66017293]
[1758069494626,0.8355,4512.0,4511.9,1.66017293]
[1758069494826,0.7168,4512.0,4511.9,1.66017293]
[1758069495431,0.8355,4512.0,4511.9,1.35157293]
[1758069496237,0.8355,4512.0,4511.9,1.66017293]
[1758069496437,0.7168,4512.0,4511.9,1.66017293]
[1758069496633,0.3112,4512.4,4512.0,0.1286]
[1758069496938,0.7168,4512.4,4512.3,1.35157293]
[1758069497128,0.7168,4512.4,4512.3,1.14467293]
[1758069497532,0.7168,4512.4,4512.3,1.66017293]
[1758069497837,0.5064,4512.4,4512.3,1.66017293]
[1758069498138,0.1952,4512.4,4512.3,1.66017293]
[1758069498938,0.5064,4512.4,4512.3,1.66017293]
[1758069499338,1.04428711,4512.4,4512.3,1.66017293]
[1758069500640,1.25468711,4512.4,4512.3,1.66017293]
[1758069500833,1.25468711,4512.4,4512.3,1.35157293]
[1758069501234,1.25468711,4512.4,4512.3,1.66017293]
[1758069504445,1.25468711,4512.4,4512.3,1.35157293]
[1758069504641,0.94348711,4512.4,4511.7,0.96267293]
[1758069504846,0.7168,4511.8,4511.7,1.68227293]
[1758069505040,1.25468711,4511.8,4511.7,1.68227293]
[1758069505343,1.25468711,4511.8,4511.7,1.66017293]
[1758069506945,0.73308711,4511.8,4511.7,1.66017293]
[1758069507347,1.04428711,4511.8,4511.7,1.66017293]
[1758069507844,1.25468711,4511.8,4511.2,0.3086]
[1758069508039,0.3951,4511.4,4511.3,1.14467293]
[1758069508239,0.6951,4511.4,4511.3,1.66667293]
[1758069508450,1.23298711,4511.4,4511.3,1.66667293]
[1758069509948,1.23298711,4511.4,4511.3,1.51223952]
[1758069510955,1.23298711,4511.4,4511.3,0.7261]
[1758069511247,1.23298711,4511.4,4511.3,0.4138]
[1758069511641,0.73308711,4511.4,4511.3,0.7261]
[1758069511843,0.53788711,4511.4,4511.3,0.7261]
[1758069512043,1.04268711,4511.4,4511.3,0.7261]
[1758069512240,1.24258711,4511.4,4511.3,0.7261]
[1758069514046,0.3,4512.1,4511.3,0.7261]
[1758069514245,0.3,4512.4,4512.1,0.3123]
[1758069514438,1.04412965,4512.3,4512.2,0.7355]
[1758069514748,1.24402965,4512.3,4512.2,0.7355]
[1758069515041,1.24402965,4512.3,4512.2,0.78613952]
[1758069515242,0.5259,4512.0,4511.9,0.99963952]
[1758069515447,1.36522965,4512.0,4511.7,0.78613952]
[1758069515744,0.7047,4511.8,4511.7,0.99963952]
[1758069515944,1.24402965,4511.8,4511.7,1.52163952]
[1758069516147,0.83932965,4511.8,4511.7,1.52163952]
[1758069516451,1.04412965,4511.8,4511.7,1.52163952]
[1758069516843,0.94402965,4511.8,4511.6,0.78613952]
[1758069517044,0.4047,4511.4,4511.3,0.99963952]
[1758069517247,0.7047,4511.4,4511.3,0.99963952]
[1758069517449,0.7047,4511.4,4511.3,1.52163952]
[1758069519043,0.1212,4512.0,4511.4,0.3123]
[1758069519343,1.04755,4512.0,4511.9,1.20933952]
[1758069519544,1.58778262,4512.0,4511.0,0.14296828]
[1758069519744,1.58778262,4512.0,4511.6,0.78613952]
[1758069519745,0.7047,4511.7,4511.6,0.78613952]
[1758069519958,1.24493262,4511.7,4511.6,0.78613952]
[1758069522151,1.24493262,4511.7,4511.6,0.99963952]
[1758069522452,0.54023262,4511.7,4511.6,1.52163952]
[1758069522654,1.24493262,4511.7,4511.6,0.7355]
[1758069522848,1.24493262,4511.7,4511.6,1.52163952]
[1758069523447,1.04503262,4511.7,4511.6,1.52163952]
[1758069524052,1.24493262,4511.7,4511.6,1.52163952]
[1758069524254,0.7047,4511.7,4511.6,1.52163952]
[1758069527247,0.3,4512.4,4511.7,0.3123]
[1758069527452,0.92633,4512.4,4512.3,0.2135]
[1758069527658,0.92633,4512.4,4511.6,0.7355]
[1758069527659,0.2048,4511.7,4511.6,0.7355]
[1758069527844,0.5048,4511.7,4511.6,1.52163952]
[1758069528750,0.3,4512.4,4511.6,5.99547904]
[1758069528954,0.7047,4512.9,4512.8,0.7355]
[1758069529258,1.24485769,4512.9,4512.8,1.52163952]
[1758069530550,0.54015769,4512.9,4512.8,1.52163952]
[1758069530746,0.7047,4512.9,4512.8,0.78613952]